bitfinex/quotes_ETHUSD_20220213
["timestamp","ask_amount","ask_price","bid_price","bid_amount"]
[1644753625904,0.0912,2933.3,2933.2,4.71895069]
[1644753629156,0.0912,2933.3,2933.2,6.70384563]
[1644753629353,0.0912,2933.3,2933.2,8.68874057]
[1644753630154,0.0912,2933.3,2933.2,9.68874057]
[1644753630854,0.10430268,2933.3,2933.2,8.68874057]
[1644753631055,0.10430268,2933.3,2933.2,9.68874057]
[1644753631796,0.10430268,2933.3,2933.2,8.68874057]
[1644753631995,0.10430268,2933.3,2933.2,28.65874057]
[1644753632195,0.01397047,2933.4,2933.2,28.65874057]
[1644753632196,0.01087971,2933.4,2933.3,4.45]
[1644753632396,0.0852,2933.6,2933.4,24.522]
[1644753632696,0.0852,2933.6,2933.5,3.4522518]
[1644753632901,0.00380109,2934.0,2933.6,2.95]
[1644753633099,0.00380109,2934.0,2933.7,3.42419484]
[1644753633299,0.00380109,2934.0,2933.8,0.8598288]
[1644753633499,0.08900109,2934.2,2933.9,2.97338219]
[1644753633700,0.08900109,2934.2,2933.9,4.19449587]
[1644753633701,0.0852,2934.2,2933.9,4.19449587]
[1644753634100,0.0852,2934.2,2933.9,4.49449587]
[1644753634304,0.0852,2934.2,2933.9,1.45199]
[1644753634500,0.0852,2934.2,2934.0,2.07009494]
[1644753634700,0.0852,2934.2,2934.0,3.36030977]
[1644753634701,0.5348,2934.2,2934.0,3.36030977]
[1644753634900,0.53860109,2934.2,2934.0,3.36030977]
[1644753636749,0.53860109,2934.2,2934.0,3.44550977]
[1644753636955,0.54947942,2934.2,2934.0,3.44550977]
[1644753637851,0.53860109,2934.2,2934.0,3.44550977]
[1644753638250,0.54947942,2934.2,2934.0,3.74550977]
[1644753638450,0.54947942,2934.2,2934.0,3.44550977]
[1644753638651,0.54947942,2934.2,2934.0,3.74550977]
[1644753639117,0.53860109,2934.2,2934.0,3.74550977]
[1644753639307,0.53860109,2934.2,2934.0,3.44550977]
[1644753639308,3.28342696,2934.1,2934.0,3.44550977]
[1644753639515,3.28342696,2934.1,2934.0,1.98489494]
[1644753639708,0.54947942,2934.2,2933.9,0.1704]
[1644753639908,3.55404125,2934.1,2934.0,2.50831977]
[1644753640207,0.1703,2934.1,2934.0,2.50831977]
[1644753640812,4.55903362,2934.1,2934.0,2.50831977]
[1644753641011,5.21086344,2934.1,2934.0,2.50831977]
[1644753641212,2.05903362,2934.1,2934.0,2.50831977]
[1644753642843,1.05903362,2934.1,2934.0,2.50831977]
[1644753643043,0.19283362,2934.1,2934.0,2.50831977]
[1644753643443,0.02253362,2934.1,2934.0,2.50831977]
[1644753643943,1.4726532,2934.1,2934.0,2.50831977]
[1644753646349,1.48271333,2934.1,2934.0,2.50831977]
[1644753648898,2.13454315,2934.1,2934.0,2.50831977]
[1644753649300,2.08454315,2934.1,2934.0,2.50831977]
[1644753650747,2.09927936,2934.1,2934.0,2.50831977]
[1644753652651,3.09927936,2934.1,2934.0,2.50831977]
[1644753652859,2.44744954,2934.1,2934.0,2.50831977]
[1644753653055,4.15240954,2934.1,2934.0,2.50831977]
[1644753653252,1.44744954,2934.1,2934.0,2.50831977]
[1644753653453,2.44744954,2934.1,2934.0,2.50831977]
[1644753653852,1.44744954,2934.1,2934.0,2.50831977]
[1644753654103,2.44744954,2934.1,2934.0,2.50831977]
[1644753654706,5.75933316,2934.1,2934.0,0.96137055]
[1644753654908,0.4496,2934.0,2933.5,0.25555]
[1644753655104,1.10233236,2934.0,2933.5,0.25555]
[1644753655305,2.10233236,2934.0,2933.7,0.85234]
[1644753655708,1.10233236,2934.0,2933.7,0.85234]
[1644753656110,1.11321783,2934.0,2933.7,0.85234]
[1644753656710,1.11321783,2934.0,2933.8,0.85227]
[1644753656911,1.11321783,2934.0,2933.7,0.93757]
[1644753657113,1.10233236,2934.0,2933.7,0.93757]
[1644753657312,0.64893127,2933.9,2933.7,0.93757]
[1644753657515,0.64893127,2933.9,2933.7,0.08523]
[1644753657712,0.64893127,2933.9,2933.7,0.93754]
[1644753657950,0.64893127,2933.9,2933.7,0.08523]
[1644753658651,0.65981682,2933.9,2933.7,0.93758]
[1644753659253,0.65981682,2933.9,2933.8,0.85227]
[1644753659552,0.64893127,2933.9,2933.7,0.93758]
[1644753659753,0.65273236,2933.9,2933.7,0.93758]
[1644753659953,0.65273236,2933.9,2933.7,0.08523]
[1644753660155,0.65273236,2933.9,2933.8,0.96137055]
[1644753661359,1.10233236,2933.9,2933.8,0.96137055]
[1644753663005,0.65273236,2933.9,2933.8,0.96137055]
[1644753663206,1.10233236,2933.9,2933.8,0.96137055]
[1644753664310,1.09853127,2933.9,2933.8,0.96137055]
[1644753664508,1.09853127,2933.9,2933.0,1.87516]
[1644753664509,4.45,2933.8,2933.0,1.87516]
[1644753664712,0.64992702,2933.5,2933.1,0.01088897]
[1644753664912,0.64992702,2933.4,2933.1,0.01088897]
[1644753665554,1.50255702,2933.4,2932.6,0.25]
[1644753665754,5.30264,2933.3,2933.1,0.01088772]
[1644753665953,2.7709457,2933.4,2933.1,0.01088772]
[1644753666155,1.0,2933.2,2933.1,0.01088772]
[1644753666354,0.64992702,2933.3,2933.1,0.01088772]
[1644753666853,0.64992702,2933.3,2932.9,0.0852]
[1644753667055,3.36400293,2933.2,2932.9,0.17046]
[1644753667454,4.77604389,2933.4,2932.9,0.17046]
[1644753667655,3.77604389,2933.4,2932.9,0.17046]
[1644753667857,1.85261,2933.3,2932.9,0.17046]
[1644753668054,3.45810856,2933.2,2932.9,0.17046]
[1644753668455,1.0,2933.1,2932.9,0.17046]
[1644753668654,3.32746478,2933.0,2932.9,0.17046]
[1644753668858,3.58204057,2933.3,2932.9,0.17046]
[1644753669296,3.10061791,2933.2,2932.9,0.17046]
[1644753669495,1.45050566,2933.1,2932.9,0.17046]
[1644753669895,4.73647891,2933.1,2932.9,0.17046]
[1644753670099,4.75925807,2933.0,2932.9,0.0852]
[1644753670503,6.70937032,2933.0,2932.9,0.0852]
[1644753670699,6.70937032,2933.0,2932.9,0.09608254]
[1644753671100,0.97202702,2932.5,2932.4,0.38423668]
[1644753671301,4.85542781,2932.5,2932.4,0.21393668]
[1644753671500,1.45050566,2932.5,2932.4,0.1704]
[1644753671700,4.71951451,2932.5,2932.4,0.1704]
[1644753671900,1.45050566,2932.5,2932.4,0.1704]
[1644753672501,4.75368689,2932.5,2932.4,0.1704]
[1644753672702,5.99968689,2932.5,2932.4,0.1704]
[1644753672944,6.99968689,2932.5,2932.4,0.1704]
[1644753673344,7.21508689,2932.5,2932.4,0.1704]
[1644753674643,1.53064343,2932.1,2932.0,0.25]
[1644753674843,2.98114909,2932.1,2931.8,0.85287]
[1644753675043,0.4496,2932.0,2931.7,0.25579]
[1644753675447,0.4496,2932.0,2931.8,0.01088424]
[1644753676052,4.90006307,2932.1,2931.8,0.01088424]
[1644753676451,4.90006307,2932.1,2931.8,0.08529]
[1644753676695,4.90006307,2932.1,2931.8,0.09617424]
[1644753676696,0.4496,2932.0,2931.8,0.09617424]
[1644753676895,0.4496,2932.0,2931.8,0.01088424]
[1644753677495,0.4496,2932.0,2931.7,0.08529]
[1644753677894,0.4496,2932.0,2931.8,0.01088432]
[1644753678298,3.73133781,2932.0,2931.8,0.01088432]
[1644753678698,3.73133781,2932.0,2931.7,0.08529]
[1644753678699,0.4496,2932.0,2931.7,0.08529]
[1644753679098,0.4496,2932.0,2931.8,0.01088432]
[1644753679897,0.4496,2932.0,2931.7,0.08529]
[1644753680344,0.4496,2932.0,2931.8,0.01088432]
[1644753681148,3.72308,2932.0,2931.7,0.93813]
[1644753681351,0.4496,2932.0,2931.8,0.01088432]
[1644753682449,0.4496,2932.0,2931.7,0.08529]
[1644753682649,0.4496,2932.0,2931.8,0.01088432]
[1644753683452,0.52099442,2932.1,2931.8,0.94904432]
[1644753683649,0.52099442,2932.1,2931.8,0.93816]
[1644753683849,3.27723688,2932.0,2931.8,0.94904432]
[1644753684107,0.52099442,2932.1,2931.8,0.94904432]
[1644753684501,0.4496,2932.0,2931.8,0.09617432]
[1644753684702,0.4496,2932.0,2931.8,0.93815]
[1644753685102,0.4496,2932.0,2931.8,0.94903424]
[1644753685505,3.73098977,2932.0,2931.8,0.09617424]
[1644753685905,4.45,2931.8,2931.7,0.0853]
[1644753686110,1.00591608,2931.8,2931.4,0.17059]
[1644753687409,1.00591608,2931.8,2931.5,0.00475299]
[1644753687609,0.4496,2932.0,2931.5,0.09005299]
[1644753688078,3.84761324,2932.0,2931.6,0.85289]
[1644753688278,3.84735736,2932.0,2931.6,0.85289]
[1644753688680,2.11407186,2931.9,2931.7,0.00475266]
[1644753689679,2.11407186,2931.9,2931.7,0.08529]
[1644753689880,2.11407186,2931.9,2931.7,0.09617448]
[1644753690080,1.0,2931.9,2931.7,0.09617448]
[1644753690584,0.4496,2932.0,2931.7,0.09617448]
[1644753690786,0.4496,2932.0,2931.7,0.08529]
[1644753691084,0.4496,2932.0,2931.7,0.09617448]
[1644753691294,3.72607198,2932.0,2931.7,0.09617448]
[1644753691485,3.72607198,2932.0,2931.7,0.09980993]
[1644753691698,1.0,2931.9,2931.7,0.09980993]
[1644753691897,1.0,2931.9,2931.7,0.08892545]
[1644753692296,1.0,2931.9,2931.7,0.09981004]
[1644753692499,3.38571899,2931.8,2931.7,0.09617459]
[1644753692799,3.38571899,2931.8,2931.7,0.01088459]
[1644753693297,4.38571899,2931.8,2931.6,0.08893545]
[1644753693496,0.86854015,2931.7,2931.6,0.09982001]
[1644753693697,4.14548987,2931.7,2931.6,0.01452001]
[1644753694097,5.14548987,2931.7,2931.6,0.01452001]
[1644753694299,5.14548987,2931.7,2931.6,0.00363545]
[1644753694300,6.89651945,2931.7,2931.6,0.00363545]
[1644753694497,6.89654559,2931.7,2931.4,0.00363545]
[1644753694699,1.0,2931.6,2931.5,0.01088473]
[1644753694898,0.02176945,2931.4,2930.9,0.04718301]
[1644753695098,3.39326896,2931.4,2930.9,0.04718301]
[1644753695346,1.07964509,2931.2,2930.9,0.21780301]
[1644753695550,1.52924509,2931.2,2931.0,0.00363545]
[1644753695953,1.52924509,2931.2,2930.9,0.08532]
[1644753696151,1.52924509,2931.2,2930.9,0.08895545]
[1644753696351,1.52924509,2931.2,2930.9,0.00363545]
[1644753696352,3.29568527,2931.1,2930.9,0.00363545]
[1644753696555,1.52924509,2931.2,2930.8,0.00282332]
[1644753696951,1.52924509,2931.2,2930.8,0.08814332]
[1644753697152,1.52924509,2931.2,2930.8,0.09177877]
[1644753697353,1.52924509,2931.2,2930.8,0.94124332]
[1644753697553,1.52924509,2931.2,2930.9,0.00363545]
[1644753697752,1.52924509,2931.2,2930.8,0.08814332]
[1644753697954,1.52924509,2931.2,2930.8,0.94128332]
[1644753698254,1.52924509,2931.2,2930.9,0.09983115]
[1644753698453,1.52924509,2931.2,2930.9,0.9492957]
[1644753698454,2.52924509,2931.2,2930.9,0.9492957]
[1644753698654,2.52924509,2931.2,2931.0,0.00363545]
[1644753698853,1.52924509,2931.2,2931.0,0.00363545]
[1644753699702,1.52924509,2931.2,2930.9,0.08531]
[1644753700305,1.52924509,2931.2,2930.8,0.00282332]
[1644753700504,1.52924509,2931.2,2930.8,0.00645877]
[1644753700705,1.52924509,2931.2,2930.8,0.00282332]
[1644753700706,3.8,2931.1,2930.8,0.00282332]
[1644753700906,5.45,2931.0,2930.6,0.00363545]
[1644753701105,0.1706,2930.9,2930.6,0.00363545]
[1644753701305,0.1706,2930.9,2929.7,0.25]
[1644753701306,2.20844,2930.9,2929.9,1.71020545]
[1644753701507,0.85333,2930.8,2930.0,0.93869]
[1644753701809,0.3,2930.8,2930.1,0.00363545]
[1644753702005,1.0,2930.8,2930.1,0.00363545]
[1644753702506,1.1845,2930.9,2930.0,0.17066]
[1644753702707,1.1845,2930.9,2929.9,1.70652]
[1644753702708,2.6915,2930.9,2930.1,0.00363545]
[1644753702950,1.0,2930.8,2930.1,0.00363545]
[1644753703150,1.0,2930.8,2930.3,0.01088128]
[1644753703354,2.1845,2930.9,2930.3,0.01088128]
[1644753703554,1.19450971,2930.4,2930.3,0.01088128]
[1644753704054,1.19450971,2930.4,2930.1,0.08534]
[1644753704257,1.19450971,2930.4,2930.2,0.01088144]
[1644753705254,3.50693726,2930.3,2930.0,0.00363545]
[1644753705456,3.50693726,2930.3,2930.2,0.01088152]
[1644753705659,3.29897521,2930.3,2930.2,0.01088152]
[1644753705957,1.06989563,2930.3,2930.2,0.01088152]
[1644753706158,4.89080006,2930.3,2930.2,0.01088152]
[1644753706360,5.89080006,2930.3,2929.8,0.00363545]
[1644753706610,5.89080006,2930.3,2929.4,10.3313]
[1644753706611,5.89080006,2930.3,2929.5,0.00363545]
[1644753706796,5.89080006,2930.3,2930.1,0.0108816]
[1644753706797,1.0,2930.2,2930.1,0.0108816]
[1644753707005,3.95,2930.1,2929.7,0.04353294]
[1644753707197,0.3,2930.1,2929.7,0.04353294]
[1644753707401,1.0,2930.0,2929.7,0.04353294]
[1644753707601,1.00040427,2929.9,2929.6,0.04035806]
[1644753708002,1.00040427,2929.9,2929.8,0.00413243]
[1644753708401,1.1706,2930.1,2929.8,0.00413243]
[1644753708600,1.0,2930.1,2929.8,0.00413243]
[1644753708800,1.1969,2930.2,2929.6,0.04035806]
[1644753709001,3.46538092,2930.1,2929.6,0.04035806]
[1644753709201,3.46538092,2930.1,2929.8,0.00413236]
[1644753709401,1.0,2930.0,2929.8,0.00413236]
[1644753709604,1.6465,2930.2,2929.8,0.00413236]
[1644753709802,3.28743251,2930.1,2929.8,0.00413236]
[1644753710001,1.0,2930.0,2929.4,0.80713545]
[1644753710203,1.0,2930.0,2929.3,0.4206]
[1644753710204,7.95,2929.9,2929.3,0.25]
[1644753710456,7.95,2929.9,2928.9,0.8529]
[1644753710457,2.45195766,2929.8,2929.2,0.04113064]
[1644753710658,1.0,2929.8,2929.2,0.04113064]
[1644753710857,0.3,2929.9,2929.2,0.04113064]
[1644753711060,1.45195544,2929.8,2929.2,0.04113064]
[1644753711261,1.45195544,2929.8,2928.9,0.08538]
[1644753711262,0.4496,2929.7,2928.9,0.08538]
[1644753711458,0.4496,2929.7,2928.8,0.1706]
[1644753711658,0.4496,2929.7,2929.4,0.01028107]
[1644753712062,0.94975366,2929.6,2929.4,0.01028107]
[1644753712462,3.38027493,2929.5,2929.0,0.08537]
[1644753712865,3.38027493,2929.5,2929.4,0.01031603]
[1644753713264,4.45,2929.3,2927.6,6.8287]
[1644753713466,4.45,2929.3,2926.7,3.8032]
[1644753713467,0.96367652,2928.7,2926.7,3.8032]
[1644753713662,0.96367652,2928.7,2927.2,0.25]
[1644753713663,4.95228628,2928.6,2927.2,0.25]
[1644753713865,1.45228628,2928.5,2927.2,0.42081]
[1644753714126,1.0,2928.5,2927.2,0.42081]
[1644753714319,1.8056,2928.6,2927.2,0.42081]
[1644753714320,6.3056,2928.6,2927.2,0.42081]
[1644753714520,0.86728844,2928.1,2927.2,0.25]
[1644753715120,1.16728844,2928.1,2926.7,4.52853]
[1644753715320,1.16728844,2928.1,2927.0,0.08542]
[1644753715525,1.16728844,2928.1,2926.7,0.17083]
[1644753715526,1.46728844,2928.1,2926.7,0.17083]
[1644753715724,1.46728844,2928.1,2926.5,0.25]
[1644753715725,1.235,2928.0,2926.5,0.25]
[1644753715925,1.86728844,2928.1,2926.5,0.25]
[1644753716125,1.0,2928.0,2926.5,0.25]
[1644753716329,0.86728844,2928.1,2927.1,0.0108822]
[1644753716724,0.86728844,2928.1,2927.2,0.1707]
[1644753716725,3.56141417,2928.0,2927.2,0.1707]
[1644753717225,1.0,2927.9,2927.2,0.1707]
[1644753717426,3.44593023,2927.8,2927.2,0.1707]
[1644753717624,3.44593023,2927.8,2927.5,0.01088164]
[1644753717851,0.02176328,2927.4,2927.2,0.1707]
[1644753718050,0.02176328,2927.4,2927.1,0.1706]
[1644753718456,0.02176328,2927.4,2926.6,0.1708]
[1644753718653,0.02176328,2927.4,2927.2,0.1708]
[1644753718853,0.02176328,2927.4,2926.6,0.1708]
[1644753719056,0.02176328,2927.4,2926.6,1.27497]
[1644753719255,0.02176328,2927.4,2926.6,1.3604]
[1644753719458,0.02176328,2927.4,2926.6,1.6604]
[1644753719659,0.02176328,2927.4,2926.7,1.1322275]
[1644753719860,0.02176328,2927.4,2926.8,0.1708]
[1644753720061,0.02176328,2927.4,2926.7,2.6279475]
[1644753720258,0.02176328,2927.4,2926.8,0.38541]
[1644753720459,0.02176328,2927.4,2926.9,0.1708]
[1644753720658,0.02176328,2927.4,2926.8,0.9395]
[1644753720858,0.02176328,2927.4,2926.8,1.2395]
[1644753721059,0.02176328,2927.4,2927.0,0.01088236]
[1644753722101,0.02176328,2927.4,2926.8,0.08541]
[1644753722302,0.02176328,2927.4,2927.1,0.01088228]
[1644753722605,0.02176328,2927.4,2927.1,0.09629228]
[1644753722804,3.5,2928.5,2927.1,0.09629228]
[1644753723003,3.49154076,2928.6,2927.1,0.09629228]
[1644753723004,0.1708,2928.6,2927.2,4.6208]
[1644753723202,0.8533,2928.7,2927.3,0.01275295]
[1644753723406,0.8533,2928.7,2927.4,0.1706]
[1644753723603,0.8533,2928.7,2927.6,0.85369]
[1644753723804,0.8533,2928.7,2927.9,0.08538]
[1644753724204,3.6706,2929.1,2927.9,0.08538]
[1644753724604,2.45257525,2929.0,2927.9,0.08538]
[1644753724903,0.1706,2928.9,2927.8,0.17076]
[1644753725106,3.53420634,2928.9,2927.8,0.17076]
[1644753725355,1.0,2928.8,2927.8,0.17076]
[1644753725548,0.1706,2928.7,2927.9,0.00358677]
[1644753725748,0.1706,2928.7,2928.0,0.08539]
[1644753725949,0.01087944,2928.4,2928.0,0.08539]
[1644753727050,1.3,2929.0,2928.0,0.08539]
[1644753727350,0.4496,2928.2,2928.0,0.08539]
[1644753727753,0.01087923,2928.4,2928.0,0.08539]
[1644753728150,2.2191,2929.2,2928.0,0.93917]
[1644753728351,0.01087923,2928.4,2928.3,0.08538]
[1644753728550,0.01087923,2928.4,2928.3,0.00358677]
[1644753729409,4.38413242,2929.1,2928.4,0.08538]
[1644753729613,0.00620052,2928.5,2928.4,0.08538]
[1644753730011,0.00620052,2928.5,2928.3,0.00358677]
[1644753730615,4.38413242,2929.1,2928.4,0.08538]
[1644753730814,1.11220695,2930.0,2928.4,0.08538]
[1644753730815,0.01087393,2928.5,2928.4,0.08538]
[1644753731214,0.01087393,2928.5,2928.4,1.10973]
[1644753731415,0.01087393,2928.5,2928.4,1.40973]
[1644753731616,0.01087393,2928.5,2928.4,1.10973]
[1644753731816,4.5552792,2929.7,2928.4,1.10973]
[1644753731817,0.4496,2929.1,2928.4,1.79272]
[1644753732017,0.01087385,2928.6,2928.5,0.00358677]
[1644753732316,0.01087385,2928.6,2928.4,0.08538]
[1644753732950,1.0,2929.5,2928.4,0.08538]
[1644753733147,0.01087377,2928.6,2928.4,0.08538]
[1644753734148,0.1706,2929.4,2928.4,1.79266]
[1644753734447,0.01087377,2928.6,2928.5,1.02800677]
[1644753734647,0.01087377,2928.6,2928.5,1.02800069]
[1644753734848,0.01087377,2928.6,2928.5,1.32800069]
[1644753735050,0.01087377,2928.6,2928.5,1.02800069]
[1644753735250,0.01087377,2928.6,2928.5,1.32800069]
[1644753735458,0.4496,2929.2,2928.5,1.02800069]
[1644753735653,0.4496,2929.2,2928.6,1.02783069]
[1644753735654,0.01087369,2928.7,2928.6,1.02783069]
[1644753735854,0.01087369,2928.7,2928.6,0.85365]
[1644753736455,3.31934958,2929.6,2928.6,0.85365]
[1644753736701,1.45232091,2929.5,2928.8,0.93898]
[1644753736901,1.45232091,2929.5,2928.9,0.00358053]
[1644753737400,1.45232091,2929.5,2928.9,0.85715053]
[1644753737802,1.45232091,2929.5,2929.0,0.08536]
[1644753738005,1.1352,2929.7,2928.9,0.3]
[1644753738006,0.01087265,2929.3,2928.9,0.3]
[1644753738402,0.01087265,2929.3,2928.8,1.87123771]
[1644753738603,0.01087265,2929.3,2928.8,3.44899771]
[1644753738903,1.1352,2929.7,2929.0,1.79228]
[1644753739303,0.01087289,2929.2,2929.0,1.79228]
[1644753739907,0.01087289,2929.2,2928.9,0.1706]
[1644753740107,3.2946,2930.0,2929.0,0.08537]
[1644753740361,1.45214493,2929.9,2929.0,0.08537]
[1644753740557,0.01087281,2929.2,2929.1,0.1706]
[1644753741055,0.01087281,2929.2,2929.1,1.87748]
[1644753741254,0.01087281,2929.2,2929.1,1.70688]
[1644753741454,3.6706,2930.2,2929.1,1.70688]
[1644753741455,3.6706,2930.2,2929.3,0.08535]
[1644753741653,2.10039352,2930.3,2929.3,0.08535]
[1644753741654,1.45205624,2930.1,2929.3,0.08535]
[1644753741855,1.1431,2930.3,2929.5,0.85344]
[1644753741856,1.45205624,2930.0,2929.5,0.85344]
[1644753742055,3.5,2930.2,2929.5,0.85344]
[1644753742056,1.45205624,2929.9,2929.5,0.85344]
[1644753742256,3.5,2930.2,2929.5,1.70688]
[1644753742456,1.45202956,2930.1,2929.5,1.70688]
[1644753742756,0.4496,2929.8,2929.6,0.08535]
[1644753743356,0.01087161,2930.0,2929.6,0.08535]
[1644753743559,0.01087161,2930.0,2929.6,0.93871]
[1644753743759,1.1431,2930.3,2929.7,0.08534]
[1644753743959,0.01087169,2929.9,2929.7,0.08534]
[1644753744603,0.01087169,2929.9,2929.7,0.93865]
[1644753745003,1.82071225,2930.7,2929.9,0.08533]
[1644753745004,0.82071225,2930.7,2929.9,0.08533]
[1644753745203,1.45189609,2930.6,2930.0,1.70636]
[1644753745407,0.65011225,2930.8,2930.0,1.99066]
[1644753745408,1.45189609,2930.5,2930.0,1.99066]
[1644753745607,1.45189609,2930.7,2930.1,0.85318]
[1644753746107,0.4496,2930.4,2930.2,0.85314]
[1644753746306,1.45189609,2930.3,2930.1,0.08532]
[1644753746506,1.45189609,2930.3,2929.8,0.6]
[1644753746706,1.45189609,2930.3,2929.8,0.3]
[1644753746908,1.45189609,2930.3,2929.7,2.47715]
[1644753747308,1.45189609,2930.3,2930.0,0.08534]
[1644753747509,0.01087138,2930.1,2930.0,1.79178]
[1644753747710,1.46276747,2930.1,2930.0,1.79178]
[1644753748157,1.46276747,2930.1,2930.0,2.09178]
[1644753748357,1.46270008,2930.1,2930.0,2.09178]
[1644753748556,0.65011225,2930.9,2930.0,2.26238]
[1644753748756,0.0108713,2930.2,2930.0,3.67447207]
[1644753749556,0.0108713,2930.2,2930.1,0.85312]
[1644753749557,0.0960713,2930.2,2930.1,0.85312]
[1644753749858,0.0960713,2930.2,2930.1,2.32372]
[1644753749859,0.0852,2930.2,2930.1,2.32372]
[1644753750056,0.0852,2930.2,2930.1,4.02998]
[1644753750057,0.09607122,2930.2,2930.1,4.02998]
[1644753750456,0.09607122,2930.2,2930.1,2.72998]
[1644753750860,0.09607122,2930.2,2930.1,3.02998]
[1644753751057,0.0852,2930.2,2930.1,4.31848]
[1644753752299,0.0852,2930.2,2930.1,4.14788]
[1644753752501,0.0852,2930.2,2930.1,3.85938]
[1644753753304,0.0852,2930.2,2930.1,2.85938]
[1644753754707,0.0852,2930.2,2930.1,3.02998]
[1644753755353,0.0852,2930.2,2930.1,4.02998]
[1644753757051,0.0852,2930.2,2930.1,3.02998]
[1644753759499,0.0852,2930.2,2930.1,2.85938]
[1644753760605,0.0852,2930.2,2930.1,3.85938]
[1644753761805,0.08411871,2930.2,2930.1,3.85938]
[1644753762005,0.08411871,2930.2,2930.1,4.0354784]
[1644753764250,0.08411871,2930.2,2930.1,3.0354784]
[1644753764450,0.08411871,2930.2,2930.1,4.0354784]
[1644753764851,0.08411871,2930.2,2930.1,3.0354784]
[1644753765051,0.08411871,2930.2,2930.1,4.0354784]
[1644753765251,0.11104882,2930.2,2930.1,4.0354784]
[1644753765656,0.11104882,2930.2,2930.1,3.0354784]
[1644753765855,0.11104882,2930.2,2930.1,4.0354784]
[1644753767598,0.11104882,2930.2,2930.1,3.8648784]
[1644753775005,2.16177855,2931.8,2930.5,0.85313]
[1644753775207,1.45126879,2931.7,2931.2,0.91617561]
[1644753775410,0.52099442,2932.1,2931.2,0.91617561]
[1644753775411,1.45126879,2932.0,2931.2,2.12207561]
[1644753775607,1.45099563,2931.9,2931.3,3.6705]
[1644753775808,0.52099442,2932.1,2931.4,1.0]
[1644753776108,0.52099442,2932.1,2931.5,1.7053]
[1644753776109,1.45095337,2932.0,2931.5,1.7053]
[1644753776310,1.45095337,2932.0,2931.5,0.6]
[1644753776508,0.01086859,2931.9,2931.5,0.6]
[1644753776809,0.01086859,2931.9,2931.4,0.0054984]
[1644753776810,1.45095337,2931.8,2931.4,0.0054984]
[1644753777207,1.45095337,2931.8,2931.7,0.85284]
[1644753777609,1.45095337,2931.8,2931.7,2.018531]
[1644753777862,0.52099442,2932.1,2931.7,2.018531]
[1644753777863,1.45095337,2932.0,2931.7,2.018531]
[1644753778051,1.45095337,2931.9,2931.7,2.0240294]
[1644753778251,1.45095337,2931.8,2931.7,2.0240294]
[1644753778453,1.45095337,2932.0,2931.7,2.0240294]
[1644753778751,0.01086859,2931.9,2931.7,2.0240294]
[1644753778952,1.45095337,2931.8,2931.7,2.0240294]
[1644753779552,0.51086859,2931.9,2931.7,2.3240294]
[1644753779752,1.45100253,2931.8,2931.7,2.3240294]
[1644753779953,0.51086859,2931.9,2931.7,2.3240294]
[1644753780154,0.51086859,2931.9,2931.7,2.0240294]
[1644753780361,0.01086859,2931.9,2931.7,4.78933557]
[1644753780562,0.01086859,2931.9,2931.7,2.0240294]
[1644753780760,0.01086859,2931.9,2931.7,4.79813484]
[1644753780960,0.52099442,2932.1,2931.8,1.0]
[1644753781160,0.52099442,2932.1,2931.9,0.85261]
[1644753781361,0.52099442,2932.1,2931.9,1.70523]
[1644753781610,0.52099442,2932.1,2932.0,3.0]
[1644753781808,0.52099442,2932.1,2932.0,2.55772]
[1644753782011,0.52099442,2932.1,2932.0,5.31417382]
[1644753782309,0.52472042,2932.1,2932.0,6.31967222]
[1644753782610,0.01086811,2932.2,2932.1,5.20253]
[1644753782811,0.01459411,2932.2,2932.1,5.46786103]
[1644753783008,0.01459411,2932.2,2932.1,4.46786103]
[1644753783410,0.003726,2932.2,2932.1,4.76786103]
[1644753783809,0.003726,2932.2,2932.1,5.76786103]
[1644753789605,0.003726,2932.2,2932.1,5.93836103]
[1644753790108,0.0018724,2932.2,2932.1,5.94387383]
[1644753790307,0.0074708,2932.2,2932.1,5.94387383]
[1644753790508,5.2255,2933.3,2932.2,7.00735]
[1644753790707,0.0074708,2933.2,2932.5,0.8523]
[1644753790908,0.04084127,2933.3,2932.7,24.42]
[1644753791109,0.04643967,2933.3,2932.8,3.6703]
[1644753791308,0.04831207,2933.3,2933.0,0.87974688]
[1644753791508,0.0074708,2933.3,2933.0,0.88524528]
[1644753791708,0.0074708,2933.3,2933.1,1.70427]
[1644753791908,0.0074708,2933.3,2933.1,3.40859]
[1644753792109,0.0074708,2933.3,2933.1,3.4196012]
[1644753792312,0.0074708,2933.3,2933.2,0.3]
[1644753792509,7.48,2933.7,2933.2,0.3]
[1644753792713,7.4874708,2933.7,2933.2,0.3110112]
[1644753792961,7.4874708,2933.7,2933.3,0.85217]
[1644753793162,0.01029929,2933.6,2933.5,0.9067777]
[1644753793462,0.01029929,2933.6,2933.5,3.80874135]
[1644753794064,0.01029929,2933.6,2933.5,4.66091135]
[1644753794264,7.4874708,2933.7,2933.5,4.66091135]
[1644753794265,0.0074708,2933.7,2933.6,2.55638]
[1644753794466,0.01217153,2933.7,2933.6,6.17949708]
[1644753794666,0.69134529,2934.2,2933.7,1.70412]
[1644753794865,0.69881609,2934.2,2933.8,3.43935079]
[1644753795066,0.69881609,2934.2,2933.8,4.29141079]
[1644753795268,0.64881609,2934.2,2933.8,4.30242199]
[1644753795466,0.0074708,2934.2,2933.8,5.15449199]
[1644753795866,0.0074708,2934.2,2933.9,0.91579634]
[1644753796067,0.0074708,2934.2,2934.0,3.37773813]
[1644753796269,0.0074708,2934.2,2934.0,3.53498643]
[1644753796467,0.0074708,2934.2,2934.1,3.62255501]
[1644753797304,0.0074708,2934.2,2934.1,4.48554621]
[1644753797906,0.0074708,2934.2,2934.1,4.78554621]
[1644753798106,1.234,2934.9,2934.2,4.10373]
[1644753798306,0.0074708,2934.9,2934.3,7.02225115]
[1644753798505,0.0074708,2934.9,2934.4,0.3]
[1644753798905,0.0074708,2934.9,2934.3,7.02225115]
[1644753798906,0.0074708,2934.9,2934.5,1.03602185]
[1644753799104,0.0074708,2934.9,2934.6,2.91471826]
[1644753799306,0.0074708,2934.9,2934.6,4.61851826]
[1644753799506,0.0074708,2934.9,2934.7,0.8519]
[1644753800109,0.0074708,2934.9,2934.8,2.90699534]
[1644753800359,0.0074708,2934.9,2934.8,2.91800654]
[1644753800566,8.48,2935.0,2934.9,6.15316]
[1644753800567,0.0056078,2935.0,2934.9,6.15316]
[1644753800760,0.0056078,2935.0,2934.9,10.74600906]